Cogmind - Beta 13 *** ADVENTURER MODE // 2024.07.20 @ 15:43:49 Player: Jefffff Result: Destroyed by Piercing Trap Performance ------------- Evolutions (0) 0 Regions Visited (2) 400 Robots Destroyed (30) 150 Value Destroyed (835) 835 Prototype IDs (10) 200 Alien Tech Used (0) 0 Bonus (0) 0 TOTAL SCORE: 1585 Bonus ------- None Cogmind --------- Core Integrity 0/250 Matter 431/500 Energy 157/160 System Corruption 1% Temperature Cool (0) Movement Rolling (117) Ox1 Location -10/Subcaves Parts ------- > --- POWER (1) -------- Light Nuclear Core > --- PROPULSION (2+1) - Compact Wheel (+) Subdweller Monowheel Subdweller Monowheel > --- UTILITY (2+1) ---- Huge Storage Unit High-capacity Matter Pod (+) Rainbow Chip > --- WEAPON (2+1) ----- Subdweller Laser Barrage Gun > --- INVENTORY (25) --- Spiked Treads Compact Wheel Compact Wheel Subdweller Monowheel Disposable Heat Sink Sensor Array ECM Suite Makeshift Light Armor Plating Makeshift Light Armor Plating Scrap Shield Subdweller Beam Cannon Battle Rifle Subdweller Shrapnel Launcher Multitool Piercing Trap Scrap Shield Fragment (49) Scrap Shield Fragment (49) Scrap Shield Fragment (49) Scrap Shield Fragment (48) Scrap Shield Fragment (47) Scrap Shield Fragment (47) Scrap Shield Fragment (46) Scrap Shield Fragment (45) Scrap Shield Fragment (45) Peak State ------------ > --- POWER ------------ Subdweller Power Source Subdweller Power Source > --- PROPULSION ------- Compact Wheel Subdweller Monowheel Subdweller Monowheel > --- UTILITY ---------- Huge Storage Unit High-capacity Matter Pod Rainbow Chip > --- WEAPON ----------- Subdweller Laser Barrage Gun > --- INVENTORY -------- Light Nuclear Core Spiked Treads Compact Wheel Compact Wheel Visual Processing Unit Sensor Array ECM Suite Makeshift Light Armor Plating Makeshift Light Armor Plating Scrap Shield Subdweller Beam Cannon Battle Rifle Multitool Piercing Trap Scrap Shield Fragment Scrap Shield Fragment Scrap Shield Fragment Scrap Shield Fragment Scrap Shield Fragment Scrap Shield Fragment Scrap Shield Fragment Scrap Shield Fragment [Rating: 33] Favorites ----------- Power Ion Engine Engine Ion Engine Power Core Light Nuclear Core Propulsion Compact Wheel Treads Spiked Treads Wheel Compact Wheel Utility High-capacity Matter Pod Device Structural Scanner Storage High-capacity Matter Pod Processor Rainbow Chip Weapon Light Cannon Energy Gun Medium Laser Ballistic Gun Barrage Gun Ballistic Cannon Light Cannon Special Weapon Mining Laser Build | -11 -10 -10 ------- Run | Yrd Mat Sub Slots Evolved . | . . . Power . | . . . Propulsion . | . . . Utility . | . . . Weapon . | . . . Parts Attached 42 | 7 14 21 Power 8 | 1 2 5 Engine 7 | 1 2 4 Core 1 | . . 1 Reactor . | . . . Propulsion 15 | 2 4 9 Treads 2 | . . 2 Leg . | . . . Wheel 13 | 2 4 7 Hover . | . . . Flight . | . . . Utility 7 | 1 4 2 Device 1 | . 1 . Storage 5 | 1 3 1 Processor 1 | . . 1 Hackware . | . . . Protection . | . . . Artifact . | . . . Weapon 12 | 3 4 5 Energy Gun 5 | . 2 3 Energy Cannon . | . . . Ballistic Gun 5 | 3 1 1 Ballistic Cannon 1 | . 1 . Launcher . | . . . Special Weapon 1 | . . 1 Impact Weapon . | . . . Slashing Weapon . | . . . Piercing Weapon . | . . . Special Melee Weapon . | . . . Unidentified Prototypes . | . . . Parts Lost 6 | . 1 5 Power 1 | . 1 . Propulsion 1 | . . 1 Utility . | . . . Weapon 4 | . . 4 Highest Loss Streak 1 | . 1 1 To Critical Strikes . | . . . Average Slot Usage (%) 94 | . 99 92 Engine 13 | . 14 13 Treads 5 | . . 7 Wheel 21 | . 27 19 Device 2 | . 8 . Storage 24 | . 19 27 Energy Gun 13 | . 12 13 Ballistic Gun 3 | . 4 2 Ballistic Cannon 7 | . 10 5 Naked Turns . | . . . Heaviest Build 101 | 14 94 101 Greatest Support 56 | 32 32 56 Greatest Overweight (x) 9 | 1 3 9 Average Overweight (x) 2 | . 1 2 Largest Inventory Capacity 25 | 8 25 25 Average Capacity 20 | 7 12 25 Most Carried 25 | 1 10 25 Average Carried 14 | . 5 18 Final Capacity 25 | 8 25 25 Final Carried 25 | 1 8 25 Class Distribution -------------------- 85% | Mutant 11% | Scavenger-Mutant 3% | Derelict-Mutant Dominant Class ---------------- Mutant | -10/Materials Mutant | -10/Subcaves Resources | -11 -10 -10 ----------- Run | Yrd Mat Sub Matter Collected 1071 | 240 424 407 Remotely . | . . . Salvage Created 936 | . 434 502 Parts 64 | . 33 31 Haulers Intercepted . | . . . Recyclers Shooed 1 | . 1 . Parts Field Recycled . | . . . Retrieved Matter . | . . . Parts Self-Destructed 4 | . . 4 Prevented . | . . . Kills | -11 -10 -10 ------- Run | Yrd Mat Sub Combat Hostiles Destroyed 23 | . 11 12 Guns 15 | . 5 10 Cannons 8 | . 6 2 Classes Destroyed 7 | . 5 2 Worker 2 | . 2 . Recycler 2 | . 2 . Watcher 3 | . 3 . Swarmer 6 | . 6 . Grunt 5 | . 5 . Artisan 1 | . . 1 Subdweller 12 | . . 12 Best Kill Streak 5 | . 5 3 Combat Bots Only 3 | . 3 3 Max Kills in Single Turn 1 | . 1 1 Gunslinging . | . . . Exploded . | . . . Melee . | . . . Uniques/NPCs Destroyed . | . . . Combat | -11 -10 -10 -------- Run | Yrd Mat Sub Hostile Shots Fired 115 | . 49 66 Missed 25 | . 9 16 Damage Taken 1310 | 5 310 995 Core 256 | . 52 204 Absorbed by Shields . | . . . Ignored by Resistances 356 | . 96 260 Regen/Repaired (Parts) 13 | . 13 . Core Remaining (%) 100 | 100 . . Volleys Fired 95 | . 39 56 Largest 2 | . 2 2 Hottest 110 | . 100 110 Shots Fired 173 | . 76 97 Gun 119 | . 41 78 Cannon 53 | . 35 18 Launcher . | . . . Special 1 | . . 1 Kinetic 78 | . 42 36 Thermal 80 | . 34 46 Explosive . | . . . Electromagnetic 15 | . . 15 Robot Hit Streak 49 | . 6 49 Robot Miss Streak 2 | . 2 1 Penetration Max . | . . . Secondary Targets 1 | . . 1 Max Gunslinging Chain 1 | . . 1 Shots Hit Robots 121 | . 46 75 Core Hits 49 | . 21 28 Critical Kills . | . . . Critical Parts Destroyed . | . . . Critical Strikes 3 | . 2 1 Destroy 1 | . . 1 Blast 2 | . 2 . Melee Attacks . | . . . Impact . | . . . Slashing . | . . . Piercing . | . . . Sneak Attacks . | . . . Combat Hostiles . | . . . Follow-up Attacks . | . . . Damage Inflicted 1903 | 10 778 1115 Guns 1298 | . 382 916 Cannons 577 | . 383 194 Explosions . | . . . Melee . | . . . Ramming 28 | 10 13 5 Kinetic 818 | . 431 387 Thermal 880 | . 334 546 Explosive . | . . . Electromagnetic 177 | . . 177 Impact . | . . . Slashing . | . . . Piercing . | . . . Highest Corruption 1 | . 1 1 Average Corruption 1 | . 1 1 Corruption Purged . | . . . Corruption Blocked . | . . . Effects 26 | . 9 17 Message Errors 10 | . 4 6 Matter Fused 7 | . 3 4 Heat Flow Errors 3 | . . 3 Energy Discharges 1 | . 1 . Data Loss (minor) 1 | . . 1 Data Loss (major) 3 | . . 3 Misfires 1 | . 1 . Overload Shots . | . . . Overflow Damage . | . . . Projectiles . | . . . Explosions . | . . . Melee . | . . . Knockbacks 9 | . 6 3 Impact 1 | . 1 . Kinetic 8 | . 5 3 Secondary . | . . . Self-Inflicted Damage 11 | 5 6 . Shots . | . . . Rammed 4 | 2 1 1 Targets Rammed 4 | 2 1 1 Kicked . | . . . Crushed . | . . . Highest Temperature 254 | . 254 227 Average Temperature 80 | . 82 75 Received Heat Transfer 492 | . 69 423 Siege Activations . | . . . Robots Corrupted . | . . . Combat Hostiles . | . . . Parts Fried 1 | . . 1 Impact Corruptions . | . . . Robots Melted . | . . . Combat Hostiles . | . . . Parts Melted 4 | . . 4 Heat Transferred 1806 | . 777 1029 Parts Sabotaged . | . . . Parts Stolen . | . . . Parts Stripped . | . . . Power Chain Reactions . | . . . Alert | -11 -10 -10 ------- Run | Yrd Mat Sub Peak Influence 208 | . 208 . Initial . | . . . Average 75 | . 80 . Maximum Alert Level 1 | . 1 . Low Security (%) 99 | 100 99 . Level 1 . | . . . Level 2 . | . . . Level 3 . | . . . Level 4 . | . . . Level 5 . | . . . High Security . | . . . Max Security . | . . . Squads Dispatched 2 | . 2 . Investigation 2 | . 2 . Extermination . | . . . Reinforcement . | . . . Assault . | . . . Garrison . | . . . Intercept . | . . . Searches Triggered . | . . . Construction Impeded . | . . . Haulers Reinforced . | . . . Active Scanning Responses . | . . . Cargo Convoy Interrupts . | . . . Stealth | -11 -10 -10 --------- Run | Yrd Mat Sub Distress Signals 2 | . 2 . Communications Jammed . | . . . Distress Signals . | . . . Times Spotted 29 | . 17 12 Peak Tracking Total 5 | . 5 2 Tactical Retreats . | . . . Traps | -11 -10 -10 ------- Run | Yrd Mat Sub Traps Triggered 3 | . 2 1 Indirectly . | . . . Trap Hack Attempts . | . . . Triggered . | . . . Disarmed . | . . . Reprogrammed . | . . . Reused . | . . . Traps Extracted . | . . . Installed . | . . . Triggered . | . . . Most Traps Carried 1 | . . 1 Machines | -11 -10 -10 ---------- Run | Yrd Mat Sub Machines Disabled 6 | . 5 1 Max in Single Turn 1 | . 1 1 Machines Repaired . | . . . Machines Dismantled . | . . . Machines Sabotaged . | . . . Overloaded Fab Kills . | . . . Hacking | -11 -10 -10 --------- Run | Yrd Mat Sub Machines Accessed 9 | . 7 2 Terminals 6 | . 6 . Fabricators . | . . . Repair Stations 1 | . 1 . Recycling Units . | . . . Scanalyzers . | . . . Garrison Access . | . . . Total Hacks 35 | . 21 14 Successful 27 | . 13 14 Failed 8 | . 8 . Catastrophic . | . . . Database Lockouts . | . . . Manual 14 | . 13 1 Terminals 18 | . 18 . Fabricators . | . . . Repair Stations 3 | . 3 . Recycling Units . | . . . Scanalyzers . | . . . Garrison Access . | . . . Terminal Hacks 19 | . 5 14 Record 13 | . . 13 Emergency Access Points 1 | . 1 . Alert Level 1 | . 1 . Unreport Threat 1 | . 1 . Hauler Manifests 1 | . 1 . Registered Components 1 | . 1 . Derelict Proto ID Bank 1 | . . 1 Fabricator Hacks . | . . . Repair Station Hacks 2 | . 2 . Scan Component 1 | . 1 . Repair 1 | . 1 . Recycling Unit Hacks . | . . . Scanalyzer . | . . . Garrison Access Hacks . | . . . Unauthorized Hacks 6 | . 6 . Terminals 6 | . 6 . Botnet 6 | . 6 . Fabricators . | . . . Repair Stations . | . . . Recycling Units . | . . . Scanalyzers . | . . . Garrison Access . | . . . Data Cores Recovered . | . . . Used . | . . . Hacking Detections 7 | . 7 . Full Trace Events 3 | . 3 . Feedback Events . | . . . Feedback Blocked . | . . . Robot Schematics Acquired . | . . . Robots Built . | . . . Authchips . | . . . Time . | . . . Total Robot Build Rating . | . . . Part Schematics Acquired . | . . . Parts Built . | . . . Authchips . | . . . Time . | . . . Total Part Build Rating . | . . . Parts Repaired 1 | . 1 . Time 26 | . 26 . Parts Recycled . | . . . Recycled Matter . | . . . Retrieved Matter . | . . . Retrieved Components . | . . . Parts Scanalyzed . | . . . Part Schematics Acquired . | . . . Parts Damaged . | . . . Bothacking | -11 -10 -10 ------------ Run | Yrd Mat Sub Used RIF Installer . | . . . Robots Hacked . | . . . Non-combat . | . . . Combat . | . . . Robot Hacks Applied . | . . . Relay Couplers Released . | . . . Fabnet Peak Effective % . | . . . Robots Rewired . | . . . Allies Hacked . | . . . Hacks Repelled . | . . . Allies | -11 -10 -10 -------- Run | Yrd Mat Sub Total Allies . | . . . Largest Group . | . . . Highest-Rated Group . | . . . Highest-Rated Ally . | . . . Total Orders . | . . . Ally Attacks . | . . . Total Damage . | . . . Kills . | . . . Allies Corrupted . | . . . Allies Melted . | . . . Intel | -11 -10 -10 ------- Run | Yrd Mat Sub Robot Analysis Total . | . . . Derelict Logs Recovered 1 | . . 1 Drone Launches . | . . . Drone Recoveries . | . . . Exploration | -11 -10 -10 ------------- Run | Yrd Mat Sub Turns Passed 3149 | 69 940 2140 Spaces Moved 1868 | 49 681 1138 Core 5 | 5 . . Treads 152 | . . 152 Legs . | . . . Wheels 1711 | 44 681 986 Hover . | . . . Flight . | . . . Fastest Speed 50 | 50 80 117 Average Speed 143 | 97 108 166 Slowest Speed 360 | 100 135 360 Overloaded Moves . | . . . Propulsion Burnouts . | . . . Robots Hopped . | . . . Cave-ins Triggered . | . . . Exploration Rate (%) 51 | 4 87 62 Regions Visited 2 Branch Regions 1 Pre-discovered Areas . | . . . Known Exits Taken . | . . . Unknown Exits Taken 2 | 1 1 . Scrap Searched 5 | . . 5 Spaces Dug . | . . . Terrain Destroyed . | . . . Melee . | . . . Projectile . | . . . AOE . | . . . Terrain Rammed . | . . . Walls Destroyed . | . . . Machines Disabled . | . . . Actions | -11 -10 -10 --------- Run | Yrd Mat Sub Total 2167 | 67 812 1288 Wait 61 | 7 43 11 Move 1866 | 48 680 1138 Hop . | . . . Pick Up 61 | 2 19 40 Fast Attach 12 | 6 3 3 Attach 14 | 1 3 10 Detach . | . . . Swap 16 | . 8 8 Drop 38 | 1 16 21 Fire 95 | . 39 56 Melee . | . . . Ram 3 | 2 1 . Kick . | . . . Crush 1 | . . 1 Escape Stasis . | . . . Rewire . | . . . Trap . | . . . Miscellaneous . | . . . Route ------- -11/Scrapyard -10/Materials (discovered 5 exits: [*Mat x2] / [*Min x2] / *Sub) -10/Subcaves History --------- Turn | Location | Event 9 | -11/Scrapyard | Discovered new exit (range 15) 70 | -11/Scrapyard | Entered Materials 232 | -10/Materials | Discovered new exit (range 10) 266 | -10/Materials | Repaired Com. Wheel 310 | -10/Materials | Build established: Mutant 473 | -10/Materials | Discovered new exit (range 16) 679 | -10/Materials | Discovered new exit (range 8) 723 | -10/Materials | Discovered new exit (range 14) 826 | -10/Materials | Build established: Scavenger-Mutant 989 | -10/Materials | Discovered new exit (range 9) 1010 | -10/Materials | Entered Subcaves 1013 | -10/Subcaves | Learned Materials emergency access door positions 1157 | -10/Subcaves | Shifting Twisted Machinery released Piercing Trap 1165 | -10/Subcaves | Build established: Mutant 1341 | -10/Subcaves | Visited Clippyterm 1345 | -10/Subcaves | Learned 40 Factory zone layouts 1345 | -10/Subcaves | Learned Factory stockpile data 1568 | -10/Subcaves | Shifting Twisted Machinery released Spk. Treads 2135 | -10/Subcaves | Disturbed a concealed Subdweller 2137 | -10/Subcaves | Core integrity fell below 50% 2887 | -10/Subcaves | Visited 4L-MR0's lab 2910 | -10/Subcaves | Found Rainbow Chip 2913 | -10/Subcaves | Attached Rainbow Chip, gained temporary slots: Power, Propulsion, Utility, Weapon 3070 | -10/Subcaves | Core integrity fell below 20% 3150 | -10/Subcaves | Destroyed by Piercing Trap Last Messages --------------- 03020_ Temporary Power slot lost. 03022_ Dropped Sub. Power Source. 03073_ 72-K37(R) destroyed. 03073_ Switching to secondary target: NM-EGM(R). 03079_ NM-EGM(R) destroyed. 03084_ VMNMTK3W62ZQF:A0GR4 B2GD:RUQF#5A 03084_ Acquired Sub. Shrapnel Launcher. 03085_ Acquired 12 matter. 03088_ Acquired Disposable Heat Sink. 03090_ Acquired Scrap Shield Fragment. 03100_ Dropped Sub. Monowheel. 03102_ Acquired 36 matter. 03110_ Dropped Broken Sub. Monowheel. 03110_ Acquired Sub. Monowheel. 03113_ Dropped Visual Processing Unit. 03113_ Acquired Broken Sub. Monowheel. 03145_ FUOLD3DYC:YQEVVISC%&GBGYQ, 03150_ Triggered Piercing Trap. 03150_ Spikes shoot up from the floor. 03150_ Critical hit (Impale). Map ----- +----------------------------------------------------+ | ## # ## ## ##### " ## ## | | ## #???### #" ! # | | # ##### # ## #?????# ####""& "" # | | # ####???######## #????## ##?##""* " # | | ###?????????????# #??## #??#"" ! " | | ##???????????????# #?## "#?#"""## " """ | | ##????????????????# ###""### """"" | | ##?????????????????## ## " #?# """ | | ##???????????????????## ### | | #?????????????????????# #### ## ## | | ??????????????????????## ###?## ## ##?? | | ???????????????????????###???# # ##??? | | ???????????????????????######?# ## ##???? | | ??????????????????????## #### ## #????? | | ??????????????????????# ### ##????? | | ??????????????????????# ## ##????? | | ??????????????????????# #????? | | ?????????????????????## ### #? | | ???????????????????### ###?## ##? | | ??????????????????## ##????## #?? | | ??????????????????# ####??????## #?? | | ??????????????????## ##??????????# ##?? | | ???????????????????## ##???????????? #??? | | ????????????????????#### ###????????????? ?? | | ??????????????????????# #??????????????? ? | | ??????????????????????# @#???????????????# | | ??????????????????????# ???????????????# | | ??????????????????????## ?????????????? | | ???????????????????????## #???????????? ?? | | ????????????????????????## ????????????????? | | ??????????????????????????# #???????????????? | | ???????????????????????????# #??????????????? | | ????????????????????????????### #?????????????? | | ???????????????????????????????# #????????????? | | ????????????????????????????????#####????????????? | | ?????????????????????????????????????????????????? | | ?????????????????????????????????????????????????? | | ?????????????????????????????????????????????????? | | ?????????????????????????????????????????????????? | | ?????????????????????????????????????????????????? | | ?????????????????????????????????????????????????? | | ?????????????????????????????????????????????????? | | ?????????????????????????????????????????????????? | | ?????????????????????????????????????????????????? | | ?????????????????????????????????????????????????? | | ?????????????????????????????????????????????????? | | ?????????????????????????????????????????????????? | | ?????????????????????????????????????????????????? | | ?????????????????????????????????????????????????? | | ?????????????????????????????????????????????????? | +----------------------------------------------------+ Best States ------------- Heat Dissipation 25 Energy Generation 25 Energy Capacity 300 Matter Stores 500 Matter Capacity 500 Sight Range 16 Terrain Scan Density 10 Resistance: KI 20 Resistance: TH 20 Resistance: EX 20 Resistance: EM 20 Resistance: I 20 Resistance: S 20 Resistance: P 20 Evasion (%) 44 Recoil Reduction 2 Offensive Hacking 10 Item Schematics ----------------- None Robot Schematics ------------------ None Fabricated ------------ Nothing Alien Tech Used ----------------- None Achievements -------------- None Challenges ------------ None Game ------ Seed HeartTargetingTearclaws Manual? 0 Play Time 00:39:20 Cumulative 50.5 hours Start 2024.07.20 @ 09:41:16 End 2024.07.20 @ 15:43:49 Sessions 2 Manual Loads 0 Difficulty Adventurer Special Mode None Game No. 79 Rogue 0 Adventurer 79 Explorer 0 Win Type - Total 0 Types 0/0/0/0/0/0/0/0/0 Lore% 40 Gallery% 38 Achievement% 30 Wizard Run 0 Options --------- Layout 2 ASCII 0 Keyboard 0 Movement Mouse Keybinds 0 Fullscreen 2 Font 48/Smallcaps Map View 25x22 Zoom Use 81% Tactical HUD 1 Map Filters NONE Filters NONE Steam 1 RUN: 1fd0d6c8-718c-438f-a02f-be01bf35700e